bitfinex-derivatives/quotes_SOLF0:USTF0_20240912
["timestamp","ask_amount","ask_price","bid_price","bid_amount"]
[1726148893475,2.3513,134.34,134.24,28.62]
[1726148893794,1.0,134.34,134.31,3.3504]
[1726148894099,1.0,134.34,134.24,28.62]
[1726148894382,1.0,134.34,134.25,3.66815076]
[1726148895086,1.0,134.34,134.27,28.62]
[1726148895267,1.3002,134.36,134.27,28.62]
[1726148896074,3.3496,134.35,134.31,3.3505]
[1726148896405,1.3002,134.36,134.24,28.62]
[1726148896581,28.62,134.35,134.24,28.62]
[1726148896784,3.3507,134.31,134.27,3.3515]
[1726148897092,22.26,134.34,134.22,54.50686014]
[1726148897287,3.3512,134.29,134.25,3.3519]
[1726148897688,29.9691,134.33,134.25,3.3519]
[1726148897902,3.3512,134.29,134.25,3.3519]
[1726148898101,1.2987,134.32,134.22,54.50686014]
[1726148898606,1.2987,134.32,134.22,25.88686014]
[1726148898779,2.2987,134.32,134.22,25.88686014]
[1726148899181,2.2987,134.32,134.24,3.3523]
[1726148899385,2.2987,134.32,134.22,25.88686014]
[1726148899689,5.6493,134.32,134.28,3.3512]
[1726148899906,2.2987,134.32,134.28,3.3512]
[1726148900394,2.2987,134.32,134.22,54.50686014]
[1726148900395,2.2987,134.32,134.24,28.62]
[1726148900891,2.2987,134.32,134.25,3.3519]
[1726148901192,30.9187,134.32,134.22,25.88686014]
[1726148901706,53.1787,134.32,134.22,25.88686014]
[1726148901996,28.62,134.3,134.22,25.88686014]
[1726148902295,1.3667,134.29,134.22,25.88686014]
[1726148902495,29.9867,134.29,134.22,25.88686014]
[1726148902883,30.9867,134.29,134.22,25.88686014]
[1726148903411,3.352,134.26,134.22,29.23956014]
[1726148903817,28.62,134.27,134.22,25.88686014]
[1726148903983,1.335,134.25,134.22,25.88686014]
[1726148904732,2.6868,134.32,134.23,3.72960323]
[1726148905028,2.6868,134.32,134.23,32.34960323]
[1726148905177,2.6868,134.32,134.23,33.74200323]
[1726148905793,31.3068,134.32,134.22,25.88686014]
[1726148906295,3.3507,134.31,134.22,25.88686014]
[1726148906684,31.3068,134.32,134.22,25.88686014]
[1726148906899,3.3509,134.3,134.25,3.3519]
[1726148907187,3.3509,134.3,134.22,25.88686014]
[1726148907588,3.3506,134.31,134.22,25.88686014]
[1726148907796,2.6868,134.32,134.22,25.88686014]
[1726148907992,3.3508,134.3,134.25,3.3519]
[1726148908194,2.6868,134.32,134.22,25.88686014]
[1726148909178,2.6868,134.32,134.27,3.3515]
[1726148909381,2.6868,134.32,134.22,25.88686014]
[1726148909586,2.6868,134.32,134.25,3.3521]
[1726148909781,2.6868,134.32,134.22,25.88686014]
[1726148910501,3.3511,134.3,134.22,25.88686014]
[1726148911299,3.3511,134.29,134.22,25.88686014]
[1726148911494,2.6868,134.32,134.22,25.88686014]
[1726148911899,3.3515,134.28,134.22,25.88686014]
[1726148912108,18.88,134.31,134.24,3.3521]
[1726148912456,18.88,134.31,134.22,25.88686014]
[1726148912789,1.0,134.31,134.22,43.76686014]
[1726148913795,18.88,134.31,134.22,25.88686014]
[1726148914009,18.88,134.31,134.23,3.3526]
[1726148914495,18.88,134.31,134.22,25.88686014]
[1726148915095,3.3521,134.25,134.22,29.23956014]
[1726148915297,18.88,134.31,134.22,29.23956014]
[1726148915508,18.88,134.31,134.22,25.88686014]
[1726148916375,3.3521,134.26,134.22,29.23956014]
[1726148916497,23.26,134.31,134.22,25.88686014]
[1726148916734,17.88,134.29,134.22,25.88686014]
[1726148916893,40.14,134.29,134.22,25.88686014]
[1726148917394,3.3522,134.25,134.22,25.88686014]
[1726148918023,3.3526,134.23,134.22,25.88686014]
[1726148920193,3.3526,134.23,134.22,21.61466014]
[1726148920401,3.3526,134.23,134.22,19.47866014]
[1726148920613,3.3526,134.23,134.22,15.20706014]
[1726148921003,3.3526,134.23,134.22,13.07136014]
[1726148921907,1.0,134.24,134.22,13.07136014]
[1726148924250,4.3525,134.24,134.22,13.07136014]
[1726148924615,1.0,134.24,134.22,13.07136014]
[1726148924804,6.116,134.26,134.22,13.07136014]
[1726148925201,3.3517,134.27,134.22,13.07136014]
[1726148925520,17.88,134.3,134.22,13.07136014]
[1726148925717,3.3514,134.28,134.22,13.07136014]
[1726148925923,17.88,134.3,134.22,13.07136014]
[1726148926410,17.88,134.3,134.23,3.3525]
[1726148926411,3.3518,134.27,134.23,3.3525]
[1726148926768,17.88,134.3,134.23,3.3525]
[1726148927420,3.3517,134.27,134.23,3.3525]
[1726148927634,17.88,134.3,134.22,16.42406014]
[1726148928017,3.352,134.26,134.22,16.42406014]
[1726148928261,19.2516,134.32,134.22,13.07136014]
[1726148928419,3.3522,134.25,134.22,13.07136014]
[1726148928634,17.88,134.28,134.22,13.07136014]
[1726148929802,1.0,134.27,134.22,13.07136014]
[1726148930033,1.0,134.27,134.23,3.3524]
[1726148930206,3.352,134.26,134.22,13.07136014]
[1726148930415,1.0,134.27,134.22,13.07136014]
[1726148930814,3.3522,134.25,134.22,13.07136014]
[1726148931021,1.0,134.27,134.22,13.07136014]
[1726148931410,3.3523,134.25,134.22,13.07136014]
[1726148931612,17.88,134.26,134.22,13.07136014]
[1726148931908,20.6897,134.26,134.22,13.07136014]
[1726148932322,1.0,134.25,134.22,13.07136014]
[1726148932916,3.3523,134.24,134.22,13.07136014]
[1726148933113,1.0,134.25,134.22,13.07136014]
[1726148934715,3.3526,134.23,134.22,13.07136014]
[1726148942518,3.3526,134.23,134.22,10.93566014]
[1726148942734,21.2326,134.23,134.22,10.93566014]
[1726148944233,3.3526,134.23,134.22,10.93566014]
[1726148944429,1.0,134.25,134.22,10.93566014]
[1726148944617,1.0,134.25,134.22,12.34716014]
[1726148944833,3.75987185,134.34,134.22,12.34716014]
[1726148944834,17.88,134.3,134.22,12.34716014]
[1726148945024,3.3513,134.29,134.22,12.34716014]
[1726148945230,17.88,134.3,134.24,3.3522]
[1726148945433,17.88,134.3,134.22,12.34716014]
[1726148945832,17.88,134.3,134.25,3.3521]
[1726148946032,17.88,134.3,134.22,12.34716014]
[1726148946417,3.3513,134.29,134.24,3.3523]
[1726148946628,17.88,134.3,134.24,3.3523]
[1726148947229,17.88,134.3,134.22,12.34716014]
[1726148947621,3.3517,134.27,134.22,15.69996014]
[1726148948044,1.0,134.29,134.22,12.34716014]
[1726148948227,17.88,134.28,134.22,12.34716014]
[1726148948944,3.352,134.26,134.22,15.69996014]
[1726148949628,3.3521,134.25,134.22,12.34716014]
[1726148950028,17.88,134.28,134.22,12.34716014]
[1726148950850,1.0,134.27,134.22,12.34716014]
[1726148951046,17.88,134.26,134.22,10.93566014]
[1726148951221,20.634,134.26,134.22,10.93566014]
[1726148951526,3.3526,134.23,134.22,10.93566014]
[1726148952531,3.3526,134.23,134.22,6.20706014]
[1726148953843,3.3528,134.22,134.21,1.49467136]
[1726148954056,17.88,134.22,134.2,1.65544283]
[1726148954249,17.88,134.22,134.19,29.96758388]
[1726148954630,21.2333,134.2,134.19,29.96758388]
[1726148955540,3.3536,134.19,134.18,1.48485468]
[1726148956434,3.3538,134.18,134.17,33.91028882]
[1726148963157,25.014,134.26,134.17,33.91028882]
[1726148963158,17.88,134.22,134.17,33.91028882]
[1726148963358,17.88,134.2,134.17,33.91028882]
[1726148964044,3.3537,134.19,134.17,33.91028882]
[1726148964246,17.88,134.22,134.17,33.91028882]
[1726148964650,17.88,134.23,134.17,33.91028882]
[1726148965072,17.88,134.21,134.17,33.91028882]
[1726148965749,3.3535,134.2,134.17,33.91028882]
[1726148966250,3.353,134.22,134.17,33.91028882]
[1726148966449,17.88,134.23,134.17,33.91028882]
[1726148967050,3.3537,134.19,134.17,33.91028882]
[1726148967243,1.0,134.22,134.17,33.91028882]
[1726148967244,17.88,134.21,134.17,33.91028882]
[1726148968244,3.3535,134.2,134.17,33.91028882]
[1726148968457,17.88,134.21,134.17,33.91028882]
[1726148968781,4.3529,134.22,134.17,33.91028882]
[1726148968950,4.3529,134.22,134.18,1.3104]
[1726148969172,3.3535,134.2,134.18,1.3104]
[1726148969360,1.0,134.22,134.18,1.3104]
[1726148969861,4.3529,134.22,134.19,1.2844]
[1726148970055,1.0,134.22,134.19,1.2844]
[1726148970385,3.3533,134.2,134.19,1.2844]
[1726148970942,3.3531,134.21,134.19,1.2844]
[1726148971273,103.75871206,134.33,134.19,1.2844]
[1726148971445,17.88,134.28,134.2,17.88]
[1726148971950,21.2314,134.28,134.2,17.88]
[1726148972164,17.88,134.28,134.2,17.88]
[1726148972353,17.88,134.28,134.22,3.3526]
[1726148972541,3.3519,134.26,134.22,3.3526]
[1726148972735,17.88,134.28,134.22,3.3527]
[1726148973036,3.3522,134.25,134.19,1.2844]
[1726148973555,17.88,134.28,134.2,3.3532]
[1726148974444,3.3525,134.24,134.2,3.3532]
[1726148974857,17.88,134.26,134.19,1.2844]
[1726148975261,17.88,134.28,134.19,1.2844]
[1726148975546,17.88,134.28,134.21,3.3531]
[1726148975547,3.3523,134.24,134.21,3.3531]
[1726148975953,3.3523,134.24,134.19,1.2844]
[1726148976223,3.3523,134.24,134.2,3.3533]
[1726148976559,17.88,134.28,134.2,3.3533]
[1726148976872,17.88,134.28,134.19,1.2844]
[1726148977068,21.68832534,134.27,134.19,1.2844]
[1726148977362,21.68832534,134.27,134.19,4.6379]
[1726148977561,21.68832534,134.27,134.19,1.2844]
[1726148977750,21.68832534,134.27,134.19,4.6379]
[1726148978060,3.3528,134.23,134.19,4.6379]
[1726148978444,17.88,134.27,134.2,3.3532]
[1726148978657,3.3524,134.24,134.19,1.2844]
[1726148978843,17.88,134.27,134.19,1.2844]
[1726148979055,21.5618961,134.27,134.19,1.2844]
[1726148979752,17.88,134.27,134.19,1.2844]
[1726148980152,3.3525,134.24,134.2,3.3533]
[1726148980354,17.88,134.27,134.2,3.3533]
[1726148980653,103.29409188,134.45,134.22,17.88]
[1726148980654,3.69746646,134.34,134.22,17.88]
[1726148980853,19.03749381,134.33,134.23,1.3456]
[1726148981058,1.15749381,134.32,134.23,1.3456]
[1726148981253,17.88,134.3,134.24,1.3943]
[1726148981461,17.88,134.29,134.24,1.3943]
[1726148981955,3.3521,134.25,134.23,1.3456]
[1726148982172,17.88,134.29,134.2,3.3531]
[1726148982370,3.3521,134.25,134.21,3.3531]
[1726148982551,17.88,134.29,134.2,1.3943]
[1726148982749,22.26,134.33,134.2,1.3943]
[1726148982985,17.88,134.3,134.2,1.3943]
[1726148983956,3.3514,134.28,134.24,3.3523]
[1726148984401,17.88,134.3,134.24,3.3523]
[1726148984588,3.3513,134.29,134.24,3.3523]
[1726148984757,17.88,134.3,134.24,3.3523]
[1726148985265,3.3515,134.28,134.24,3.3523]
[1726148985475,17.88,134.3,134.2,1.3943]
[1726148986668,3.352,134.26,134.22,3.3527]
[1726148987472,3.3521,134.25,134.21,3.353]
[1726148987863,17.88,134.28,134.2,1.3943]
[1726148988064,3.3524,134.24,134.2,1.3943]
[1726148988261,17.88,134.28,134.2,1.3943]
[1726148988655,17.88,134.3,134.2,1.3943]
[1726148989179,3.3516,134.27,134.23,3.3524]
[1726148989756,17.88,134.3,134.23,3.3524]
[1726148990471,17.88,134.33,134.21,17.88]
[1726148990681,1.15729113,134.32,134.21,17.88]
[1726148990987,3.3513,134.29,134.25,3.352]
[1726148991362,17.88,134.33,134.21,17.88]
[1726148991555,1.15738258,134.32,134.23,3.3524]
[1726148991974,3.3516,134.28,134.23,3.3524]
[1726148992162,17.88,134.33,134.23,3.3524]
[1726148992416,1.15736519,134.32,134.23,3.3524]
[1726148992568,1.15736519,134.32,134.21,17.88]
[1726148992968,17.88,134.31,134.21,17.88]
[1726148993364,19.2214,134.31,134.2,1.3943]
[1726148993754,19.2214,134.31,134.22,3.3528]
[1726148994953,3.352,134.26,134.22,3.3528]
[1726148995170,3.352,134.26,134.23,3.3525]
[1726148995567,3.3517,134.27,134.23,3.3525]
[1726148996471,3.3515,134.28,134.24,3.3522]
[1726148996663,129.71644594,134.34,134.23,17.88]
[1726148996664,107.45644594,134.34,134.23,17.88]
[1726148996862,3.3512,134.29,134.24,1.3606]
[1726148997069,3.3512,134.29,134.25,1.3568]
[1726148997358,17.88,134.32,134.25,1.3568]
[1726148998466,1.1574036,134.31,134.21,17.88]
[1726148998723,3.3519,134.26,134.22,4.7095]
[1726148999278,17.88,134.31,134.23,3.3525]
[1726148999770,3.352,134.26,134.22,4.7095]
[1726149000076,17.88,134.31,134.22,1.3568]
[1726149001071,3.3519,134.26,134.22,4.7095]
[1726149001581,40.14,134.31,134.22,1.3568]
[1726149001781,2.47078038,134.3,134.22,1.3568]
[1726149002077,19.1935,134.3,134.22,1.3568]
[1726149002371,41.4535,134.3,134.22,1.3568]
[1726149002678,17.88,134.28,134.2,1.3943]
[1726149002888,3.3525,134.24,134.2,4.7476]
[1726149003865,3.3527,134.23,134.2,1.3943]
[1726149004072,17.88,134.28,134.2,1.3943]
[1726149004583,3.72242098,134.27,134.2,1.3943]
[1726149005072,17.88,134.28,134.2,1.3943]
[1726149005266,3.80851222,134.27,134.2,1.3943]
[1726149005488,3.3529,134.22,134.2,1.3943]
[1726149005767,17.88,134.26,134.17,33.91028882]
[1726149006565,3.3534,134.2,134.17,33.91028882]
[1726149007474,3.3536,134.19,134.17,33.91028882]
[1726149008068,3.3534,134.2,134.17,33.91028882]
[1726149008410,3.72838401,134.25,134.17,33.91028882]
[1726149008581,3.3536,134.19,134.17,33.91028882]
[1726149009177,3.3538,134.18,134.17,33.91028882]
[1726149009791,3.3538,134.18,134.17,30.77428882]
[1726149011286,17.88,134.21,134.17,30.77428882]
[1726149012224,3.7098,134.23,134.17,30.77428882]
[1726149012395,3.3537,134.19,134.17,30.77428882]
[1726149012782,3.3538,134.18,134.17,30.77428882]
[1726149015297,3.3538,134.18,134.17,27.63558882]
[1726149017485,3.3541,134.17,134.16,47.92309567]
[1726149017898,3.3537,134.19,134.16,47.92309567]
[1726149018203,17.88,134.19,134.16,47.92309567]
[1726149018581,3.3541,134.17,134.16,47.92309567]
[1726149019795,17.88,134.19,134.16,47.92309567]
[1726149020501,2.7091,134.23,134.16,47.92309567]
[1726149020502,17.88,134.21,134.16,47.92309567]
[1726149022195,3.3538,134.19,134.16,47.92309567]
[1726149022391,17.88,134.21,134.16,47.92309567]
[1726149022603,3.3536,134.19,134.16,47.92309567]
[1726149023402,17.88,134.21,134.16,47.92309567]
[1726149024401,3.3541,134.17,134.16,47.92309567]
[1726149024813,17.88,134.21,134.16,47.92309567]
[1726149025824,3.3538,134.19,134.16,47.92309567]
[1726149026111,21.49,134.21,134.16,47.92309567]
[1726149026305,3.3539,134.18,134.16,47.92309567]
[1726149027110,3.3541,134.17,134.16,47.92309567]
[1726149027301,21.49,134.21,134.16,47.92309567]
[1726149027903,3.78151159,134.24,134.16,47.92309567]
[1726149027904,21.49,134.19,134.16,47.92309567]
[1726149028518,3.3541,134.17,134.16,47.92309567]
[1726149029715,21.49,134.19,134.16,47.92309567]
[1726149029716,3.3539,134.18,134.16,47.92309567]
[1726149030260,3.3541,134.17,134.16,47.92309567]
[1726149030609,24.8441,134.17,134.16,47.92309567]
[1726149031934,3.3541,134.17,134.16,47.92309567]
[1726149032415,24.8441,134.17,134.16,47.92309567]
[1726149034522,3.3543,134.16,134.15,2.05445721]
[1726149034742,21.49,134.16,134.13,30.9048275]
[1726149034909,21.49,134.17,134.13,30.9048275]
[1726149035105,3.3544,134.16,134.13,30.9048275]
[1726149035415,21.49,134.17,134.13,30.9048275]
[1726149035616,3.3547,134.15,134.13,30.9048275]
[1726149035811,21.49,134.17,134.13,30.9048275]
[1726149036912,3.3548,134.14,134.13,30.9048275]
[1726149039427,25.20744997,134.14,134.11,2.75281858]
[1726149039818,3.3553,134.12,134.11,2.75281858]
[1726149041723,13.74,134.13,134.1,40.45055051]
[1726149041724,3.3556,134.11,134.1,40.45055051]
[1726149042036,17.0956,134.11,134.1,40.45055051]
[1726149042217,24.8456,134.11,134.09,16.82323724]
[1726149042411,3.3558,134.1,134.09,16.82323724]
[1726149043426,3.3558,134.1,134.07,21.51615276]
[1726149043625,126.35300796,134.07,133.99,2.53876687]
[1726149043856,21.49,134.01,133.99,2.53876687]
[1726149044324,103.96300796,134.07,134.0,11.79432678]
[1726149044537,21.49,134.02,134.0,11.79432678]
[1726149044827,125.45300796,134.07,134.0,11.79432678]
[1726149044828,21.49,134.04,134.0,11.79432678]
[1726149045523,21.49,134.04,134.01,1.3347]
[1726149045843,21.49,134.04,134.01,2.639]
[1726149046225,21.49,134.06,134.01,2.639]
[1726149046421,21.49,134.06,134.02,1.3416]
[1726149046632,24.8464,134.08,134.02,1.3416]
[1726149046832,21.49,134.08,134.02,1.3416]
[1726149047330,21.49,134.08,134.04,3.3572]
[1726149047623,21.49,134.08,134.02,1.3416]
[1726149047937,21.49,134.12,134.02,26.64534453]
[1726149048436,24.8455,134.12,134.07,3.3565]
[1726149048635,21.49,134.12,134.08,2.6877]
[1726149049025,3.3559,134.1,134.08,2.6877]
[1726149049721,21.49,134.12,134.08,2.6877]
[1726149050525,24.8455,134.12,134.08,2.6877]
[1726149050733,21.49,134.12,134.08,2.6877]
[1726149051429,3.3556,134.11,134.08,2.6877]
[1726149051628,21.49,134.12,134.08,2.6877]
[1726149052077,3.356,134.1,134.08,2.6877]
[1726149053035,3.3556,134.11,134.08,2.6877]
[1726149053232,21.49,134.12,134.08,2.6877]
[1726149053730,24.8455,134.12,134.08,2.6877]
[1726149054434,21.49,134.21,134.08,2.6877]
[1726149054435,21.49,134.14,134.08,2.6877]
[1726149054627,21.49,134.14,134.09,1.2852]
[1726149055530,21.49,134.14,134.09,4.6412]
[1726149055741,21.49,134.14,134.09,1.2852]
[1726149055937,43.88,134.21,134.09,1.2852]
[1726149056179,21.49,134.13,134.09,1.2852]
[1726149056336,24.8452,134.13,134.09,1.2852]
[1726149056537,21.49,134.13,134.09,1.2852]
[1726149056726,21.49,134.15,134.09,1.2852]
[1726149056928,24.8448,134.15,134.1,3.3557]
[1726149057324,21.49,134.15,134.1,3.3557]
[1726149057523,21.49,134.15,134.09,1.2852]
[1726149057724,21.49,134.16,134.09,1.2852]
[1726149058024,21.49,134.16,134.12,3.3551]
[1726149058226,21.49,134.16,134.09,1.2852]
[1726149058434,21.49,134.21,134.09,1.2852]
[1726149058642,24.8445,134.16,134.11,3.3556]
[1726149058864,21.49,134.16,134.09,1.2852]
[1726149059742,3.355,134.14,134.1,3.3557]
[1726149059958,21.49,134.14,134.09,1.2852]
[1726149061447,21.49,134.12,134.09,1.2852]
[1726149062125,21.49,134.12,134.08,2.6877]
[1726149063928,3.3561,134.09,134.04,3.3572]
[1726149064187,21.49,134.1,134.04,2.7159]
[1726149064549,3.3564,134.08,134.04,2.7159]
[1726149064738,21.49,134.1,134.04,2.7159]
[1726149064943,21.49,134.07,134.04,2.7159]
[1726149066248,24.8467,134.07,134.04,2.7159]
[1726149066743,21.49,134.07,134.04,2.7159]
[1726149067248,3.3568,134.06,134.04,2.7159]
[1726149067450,21.49,134.07,134.04,1.3374]
[1726149067636,43.88,134.14,134.0,11.79432678]
[1726149067637,43.88,134.14,134.0,14.51422678]
[1726149067979,21.49,134.05,134.0,14.51422678]
[1726149068339,24.8467,134.07,134.0,14.51422678]
[1726149068753,21.49,134.07,134.0,14.51422678]
[1726149069343,21.49,134.05,134.0,14.51422678]
[1726149069538,3.3577,134.03,134.0,14.51422678]
[1726149070142,21.49,134.05,134.0,14.51422678]
[1726149070355,3.3577,134.03,134.0,14.51422678]
[1726149070789,21.49,134.05,134.0,11.79432678]
[1726149072043,3.3577,134.03,134.0,11.79432678]
[1726149072257,21.49,134.05,134.0,11.79432678]
[1726149072641,3.358,134.02,134.0,11.79432678]
[1726149074148,21.49,134.07,134.0,11.79432678]
[1726149075152,24.8463,134.09,134.05,3.3571]
[1726149075344,21.49,134.11,134.02,3.75858477]
[1726149075549,21.49,134.11,134.03,1.3023]
[1726149075774,234.7074,134.19,134.04,1.342]
[1726149075942,21.49,134.11,134.04,2.755]
[1726149076143,24.8452,134.13,134.08,3.3561]
[1726149076346,21.49,134.13,134.04,2.755]
[1726149076654,3.3554,134.12,134.07,3.3564]
[1726149076857,21.49,134.13,134.07,3.3564]
[1726149077548,21.49,134.13,134.06,3.3566]
[1726149077873,21.49,134.13,134.04,2.755]
[1726149078050,21.49,134.13,134.07,3.3564]
[1726149078253,3.713431,134.19,134.02,3.76306283]
[1726149078254,24.8463,134.09,134.02,3.76306283]
[1726149078458,21.49,134.09,134.01,2.7153]
[1726149078755,21.49,134.09,134.04,3.3573]
[1726149078942,21.49,134.09,134.01,2.7153]
[1726149079143,21.49,134.08,134.01,6.0733]
[1726149079361,21.49,134.08,134.01,2.7153]
[1726149079859,132.95859729,134.2,134.01,2.7153]
[1726149079860,110.56859729,134.2,134.01,2.7153]
[1726149080183,1.15474305,134.19,134.02,21.49]
[1726149080392,21.49,134.17,134.02,3.68340546]
[1726149080555,21.49,134.17,134.07,21.49]
[1726149080851,21.49,134.17,134.1,3.3556]
[1726149080852,3.355,134.14,134.1,3.3556]
[1726149081258,21.49,134.17,134.08,4.1252]
[1726149081448,21.49,134.17,134.09,3.3559]
[1726149082057,21.49,134.15,134.08,7.4815]
[1726149082266,21.49,134.15,134.08,4.1252]
[1726149082463,3.3551,134.13,134.09,3.356]
[1726149083173,21.49,134.15,134.08,4.1252]
[1726149083758,3.3554,134.12,134.08,4.1252]
[1726149084051,21.49,134.15,134.08,4.1252]
[1726149084187,3.3555,134.12,134.08,7.4814]
[1726149084466,21.49,134.15,134.08,7.4814]
[1726149084663,3.3555,134.12,134.08,7.4814]
[1726149085048,21.49,134.15,134.08,7.4814]
[1726149085756,21.49,134.15,134.08,4.1252]
[1726149086358,103.86169729,134.2,134.08,25.6152]
[1726149086758,103.86169729,134.2,134.08,4.1252]
[1726149086962,21.49,134.21,134.11,21.49]
[1726149087262,21.49,134.21,134.11,25.17742577]
[1726149087473,3.3539,134.18,134.14,3.3548]
[1726149087771,21.49,134.21,134.15,1.3285]
[1726149088164,21.49,134.21,134.15,4.683]
[1726149088360,21.49,134.21,134.15,1.3285]
[1726149089077,21.49,134.2,134.15,1.3285]
[1726149089448,3.3543,134.17,134.15,1.3285]
[1726149089878,1.3956,134.26,134.15,1.3285]
[1726149090113,21.49,134.2,134.15,1.3285]
[1726149092563,1.3956,134.26,134.15,1.3285]
[1726149092793,21.49,134.23,134.16,2.7311]
[1726149092954,3.353,134.22,134.17,3.3539]
[1726149093470,3.3531,134.21,134.17,3.3539]
[1726149093857,3.3531,134.21,134.16,2.7311]
[1726149094054,3.3534,134.2,134.16,2.7311]
[1726149094262,21.49,134.22,134.16,2.7311]
[1726149095481,1.3956,134.26,134.16,2.7311]
[1726149095663,3.353,134.22,134.18,3.3538]
[1726149095871,21.49,134.25,134.16,2.7311]
[1726149096182,21.49,134.24,134.16,2.7311]
[1726149096359,21.49,134.22,134.16,2.7311]
[1726149096577,3.68094949,134.3,134.15,1.3285]
[1726149096761,21.49,134.24,134.15,1.3285]
[1726149097872,21.49,134.24,134.15,22.8185]
[1726149098264,3.3527,134.23,134.19,3.3535]
[1726149098580,21.49,134.24,134.15,22.8185]
[1726149099461,3.353,134.22,134.15,22.8185]
[1726149100177,3.3532,134.21,134.18,3.3537]
[1726149100360,3.3532,134.21,134.15,22.8185]
[1726149100760,3.353,134.22,134.15,22.8185]
[1726149100964,21.49,134.26,134.15,22.8185]
[1726149101159,21.49,134.26,134.19,3.3534]
[1726149101370,3.3526,134.23,134.19,3.3534]
[1726149101784,21.49,134.26,134.15,22.8185]
[1726149101976,21.49,134.22,134.15,1.3285]
[1726149102999,21.49,134.18,134.06,21.49]
[1726149103266,21.49,134.18,134.07,4.1151]
[1726149103507,21.49,134.2,134.09,21.49]
[1726149103700,21.49,134.2,134.09,25.13164865]
[1726149103973,21.49,134.2,134.13,3.3549]
[1726149104179,21.49,134.2,134.11,21.49]
[1726149105163,21.49,134.22,134.11,21.49]
[1726149106074,3.3542,134.17,134.11,21.49]
[1726149106677,21.49,134.2,134.11,21.49]
[1726149107779,21.49,134.2,134.14,3.3546]
[1726149107991,21.49,134.22,134.11,21.49]
[1726149108167,3.3535,134.2,134.13,21.49]
[1726149108362,3.3535,134.2,134.14,4.0706]
[1726149108601,21.49,134.24,134.14,7.86674424]
[1726149108785,3.3536,134.19,134.15,3.3545]
[1726149109069,21.49,134.24,134.14,7.86674424]
[1726149109474,3.3531,134.21,134.16,3.3543]
[1726149109673,21.49,134.24,134.14,7.86674424]
[1726149110040,21.49,134.24,134.16,3.3541]
[1726149110175,21.49,134.24,134.14,7.86674424]
[1726149110683,21.49,134.24,134.14,4.0706]
[1726149111074,3.3535,134.2,134.15,3.3544]
[1726149111267,21.49,134.24,134.15,3.3544]
[1726149111472,3.3536,134.19,134.14,11.09375597]
[1726149111689,21.49,134.22,134.14,7.4253]
[1726149111987,21.49,134.22,134.14,4.0706]
[1726149112175,21.49,134.22,134.14,7.4254]
[1726149112775,3.3537,134.19,134.14,7.4254]
[1726149112978,21.49,134.22,134.14,7.4254]
[1726149113485,21.49,134.2,134.14,1.3505]
[1726149113878,3.3542,134.17,134.14,1.3505]
[1726149114383,21.49,134.19,134.1,3.81934088]
[1726149114580,22.8242,134.19,134.09,21.49]
[1726149115388,3.3548,134.15,134.11,3.3554]
[1726149115583,22.8242,134.19,134.11,3.3554]
[1726149115985,3.3547,134.15,134.11,3.3554]
[1726149116294,21.49,134.17,134.09,3.79734566]
[1726149116677,21.49,134.17,134.1,3.3558]
[1726149116878,21.49,134.17,134.09,3.79734566]
[1726149117093,3.3552,134.13,134.09,3.79734566]
[1726149117278,3.3552,134.13,134.09,7.15324566]
[1726149117493,21.49,134.17,134.09,3.79734566]